Workbook

Sheet Cash Outflow % (hidden)
A1: CASH OUTFLOW- DISTRICT ONE HOUSING SHEIKHUPURA
A3: Task | B3: Estimated Cost + 5% Con. | C3: 2022 | G3: 2023 | S3: 2024
C4: September | D4: October | E4: November | F4: December | G4: January | H4: February | I4: March | J4: April | K4: May | L4: June | M4: July | N4: August | O4: September | P4: October | Q4: November | R4: December | S4: January | T4: February | U4: March
A5: Road Cut & Fill | B5: 65.95M | C5: 10% | D5: 30% | E5: 30% | F5: 30%
A6: Entrance Gate | B6: =#REF! ->  | F6: 30% | G6: 15% | H6: 10% | I6: 10% | J6: 20% | K6: 10% | L6: 5%
A7: Sewerage | B7: =#REF! ->  | D7: 35% | E7: 30% | F7: 25% | G7: 10%
A8: Street Lights | B8: =#REF! ->  | G8: 85% | H8: 15%
A9: Disposal Station | B9: =#REF! ->  | G9: 30% | H9: 25% | I9: 10% | J9: 10% | K9: 20% | L9: 5%
A10: Water Supply Network | B10: =#REF! ->  | E10: 35% | F10: 30% | G10: 20% | H10: 15%
A11: OHWT + Tubewell | B11: =#REF! ->  | H11: 20% | I11: 15% | J11: 15% | K11: 10% | L11: 10% | M11: 10% | N11: 15% | O11: 5%
A12: Road Formation (Structure) + Parking Areas | B12: 43.36 M | I12: 30% | J12: 30% | K12: 25% | L12: 15%
A13: External Electrification | B13: =#REF! ->  | M13: 25% | N13: 40% | O13: 20% | P13: 15%
A14: Gas Supply Network | B14: =#REF! ->  | M14: 35% | N14: 25% | O14: 20% | P14: 20%
A15: Footpath (Both sides of road) | B15: =#REF! ->  | N15: 35% | O15: 35% | P15: 15% | Q15: 15%
A16: Road Pavement (Asphalt & Marking) | B16: 65.88 M | Q16: 90% | R16: 10%
A17: Horticulture | B17: =#REF! ->  | K17: 20% | L17: 20% | M17: 10% | N17: 10% | O17: 10% | P17: 10% | Q17: 10% | R17: 10%
A18: Mosque | B18: =#REF! ->  | L18: 20% | M18: 15% | N18: 10% | O18: 10% | P18: 10% | Q18: 15% | R18: 5% | S18: 10% | T18: 5%
A19: Society Office | B19: =#REF! ->  | M19: 20% | N19: 15% | O19: 15% | P19: 15% | Q19: 10% | R19: 15% | S19: 10%
A20: Misc. + Project Closing | B20: =#REF! ->  | R20: 25% | S20: 25% | T20: 25% | U20: 25%
A21: Overheads | B21: 72.00 M | C21: 5.25% | D21: 5.25% | E21: 5.25% | F21: 5.25% | G21: 5.25% | H21: 5.25% | I21: 5.25% | J21: 5.25% | K21: 5.25% | L21: 5.25% | M21: 5.25% | N21: 5.25% | O21: 5.25% | P21: 5.25% | Q21: 5.25% | R21: 5.25% | S21: 5.25% | T21: 5.25% | U21: 5.50%
A22: Total Amount | B22: =SUM(B5:B21) -> 
A27: CASH OUTFLOW- DISTRICT ONE HOUSING SHEIKHUPURA
A29: Task | B29: =B3 -> Estimated Cost + 5% Con. | C29: 2022 | G29: 2023 | S29: 2024
C30: September | D30: October | E30: November | F30: December | G30: January | H30: February | I30: March | J30: April | K30: May | L30: June | M30: July | N30: August | O30: September | P30: October | Q30: November | R30: December | S30: January | T30: February | U30: March
A31: Road Cut & Fill | B31: =B5 -> 65.95M | C31: =B5*C5 -> 6.59M | D31: =B5*D5 -> 19.78M | E31: =B5*E5 -> 19.78M | F31: =B5*F5 -> 19.78M
A32: Entrance Gate | F32: =B6*F6 ->  | G32: =B6*G6 ->  | H32: =B6*H6 ->  | I32: =B6*I6 ->  | J32: =B6*J6 ->  | K32: =B6*K6 ->  | L32: =B6*L6 -> 
A33: Sewerage | D33: =B7*D7 ->  | E33: =B7*E7 ->  | F33: =B7*F7 ->  | G33: =B7*G7 -> 
A34: Street Lights | G34: =B8*G8 ->  | H34: =B8*H8 -> 
A35: Disposal Station | G35: =B9*G9 ->  | H35: =B9*H9 ->  | I35: =B9*I9 ->  | J35: =B9*J9 ->  | K35: =B9*K9 ->  | L35: =B9*L9 -> 
A36: Water Supply Network | E36: =B10*E10 ->  | F36: =B10*F10 ->  | G36: =B10*G10 ->  | H36: =B10*H10 -> 
A37: OHWT + Tubewell | H37: =B11*H11 ->  | I37: =B11*I11 ->  | J37: =B11*J11 ->  | K37: =B11*K11 ->  | L37: =B11*L11 ->  | M37: =B11*M11 ->  | N37: =B11*N11 ->  | O37: =B11*O11 -> 
A38: Road Formation (Structure) + Parking Areas | B38: 43.36M | I38: =B12*I12 -> 13.01M | J38: =B12*J12 -> 13.01M | K38: =B12*K12 -> 10.84M | L38: =B12*L12 -> 6.50M
A39: External Electrification | M39: =B13*M13 ->  | N39: =B13*N13 ->  | O39: =B13*O13 ->  | P39: =B13*P13 -> 
A40: Gas Supply Network | M40: =B14*M14 ->  | N40: =B14*N14 ->  | O40: =B14*O14 ->  | P40: =B14*P14 -> 
A41: Footpath (Both sides of road) | N41: =B15*N15 ->  | O41: =B15*O15 ->  | P41: =B15*P15 ->  | Q41: =B15*Q15 -> 
A42: Road Pavement (Asphalt & Marking) | B42: 65.88M | Q42: =B16*Q16 -> 59.29M | R42: =B16*R16 -> 6.59M
A43: Horticulture | K43: =B17*K17 ->  | L43: =B17*L17 ->  | M43: =B17*M17 ->  | N43: =B17*N17 ->  | O43: =B17*O17 ->  | P43: =B17*P17 ->  | Q43: =B17*Q17 -> 
A44: Mosque | L44: =B18*L18 ->  | M44: =B18*M18 ->  | N44: =B18*N18 ->  | O44: =B18*O18 ->  | P44: =B18*P18 ->  | Q44: =B18*Q18 ->  | S44: =B18*S18 ->  | T44: =B18*T18 -> 
A45: Society Office | M45: =B19*M19 ->  | N45: =B19*N19 ->  | O45: =B19*O19 ->  | P45: =B19*P19 ->  | Q45: =B19*Q19 ->  | S45: =B19*S19 -> 
A46: Misc. + Project Closing | S46: =B20*S20 ->  | T46: =B20*T20 ->  | U46: =B20*U20 -> 
A47: Overheads | B47: 72.00M | C47: =B21*C21 -> 3.78M | D47: =B21*D21 -> 3.78M | E47: =B21*E21 -> 3.78M | F47: =B21*F21 -> 3.78M | G47: =B21*G21 -> 3.78M | H47: =B21*H21 -> 3.78M | I47: =B21*I21 -> 3.78M | J47: =B21*J21 -> 3.78M | K47: =B21*K21 -> 3.78M | L47: =B21*L21 -> 3.78M | M47: =B21*M21 -> 3.78M | N47: =B21*N21 -> 3.78M | O47: =B21*O21 -> 3.78M | P47: =B21*P21 -> 3.78M | Q47: =B21*Q21 -> 3.78M | R47: 3.78M | S47: =B21*S21 -> 3.78M | T47: =B21*T21 -> 3.78M | U47: =B21*U21 -> 3.96M
A48: Total Amount | B48: =SUM(B31:B47) ->  | C48: =SUM(C31:C47) -> 10.37M | D48: =SUM(D31:D47) ->  | E48: =SUM(E31:E47) ->  | U48: =SUM(U31:U47) -> 

Sheet Earned Value Date
A1: EARNED VALUE MANAGEMENT - PROJECT NAME
A3: Task | B3: 2020 | I3: 2021 | K3: PV | L3: % Complete | M3: EV (PV X %Complete)
B4: Jun | C4: Jul | D4: Aug | E4: Sep | F4: Oct | G4: Nov | H4: Dec | I4: Jan | J4: Feb
A5: Task-1 | C5: 6.85M$ | D5: 0.21M$ | K5: =SUM(B5:J5) -> 7.06M$ | L5: 100% | M5: =PRODUCT(K5:L5) -> 7.06M$
A6: Task-2 | B6: 0.71M$ | C6: 0.75M$ | D6: 0.34M$ | E6: 0.07M$ | K6: =SUM(B6:J6) -> 1.87M$ | L6: 90% | M6: =PRODUCT(K6:L6) -> 1.68M$
A7: Task-3 | D7: 4.40M$ | E7: 2.48M$ | K7: =SUM(B7:J7) -> 6.88M$ | L7: 85% | M7: =PRODUCT(K7:L7) -> 5.85M$
A8: Task-4 | C8: 18.67M$ | D8: 37.34M$ | E8: 56.01M$ | F8: 74.67M$ | G8: 68.45M$ | H8: 37.34M$ | I8: 15.56M$ | J8: 3.11M$ | K8: =SUM(B8:J8) -> 311.14M$ | L8: 60% | M8: 186.69M$
A9: Task-5 | D9: 2.27M$ | E9: 7.28M$ | F9: 5.61M$ | K9: =SUM(B9:J9) -> 15.16M$ | L9: 80% | M9: 12.13M$
A10: Task-6 | C10: 0.76M$ | D10: 6.43M$ | E10: 6.43M$ | F10: 6.43M$ | G10: 6.43M$ | H10: 6.43M$ | I10: 4.92M$ | K10: =SUM(B10:J10) -> 37.81M$ | L10: 75% | M10: 28.36M$
A11: Task-7 | E11: 7.89M$ | F11: 18.65M$ | G11: 17.93M$ | H11: 16.49M$ | I11: 10.76M$ | K11: =SUM(B11:J11) -> 71.71M$
A12: Task-8 | E12: 2.11M$ | F12: 5.06M$ | G12: 4.64M$ | H12: 4.85M$ | I12: 4.43M$ | K12: 21.10M$
A13: Task-9 | E13: 0.63M$ | F13: 7.58M$ | G13: 6.95M$ | H13: 7.58M$ | I13: 7.26M$ | J13: 1.58M$ | K13: 31.59M$
A14: Task-10 | F14: 6.07M$ | G14: 9.10M$ | H14: 9.10M$ | I14: 9.86M$ | J14: 3.79M$ | K14: 37.92M$
A15: Task-11 | B15: 3.65M$ | C15: 7.31M$ | D15: 7.31M$ | E15: 7.31M$ | F15: 7.31M$ | G15: 7.31M$ | H15: 7.31M$ | I15: 7.31M$ | J15: 6.09M$ | K15: 60.88M$
K16: =SUM(K5:K15) -> 603.13M$
A17: Monthly Planned Value (PV) | B17: =SUM(B5:B16) -> 4.36M$ | C17: =SUM(C5:C16) -> 34.33M$ | D17: =SUM(D5:D16) -> 58.30M$ | E17: =SUM(E5:E16) -> 90.20M$ | F17: 131.38M$ | G17: =SUM(G5:G16) -> 120.81M$ | H17: =SUM(H5:H16) -> 89.10M$ | I17: =SUM(I5:I15) -> 60.09M$ | J17: =SUM(J5:J15) -> 14.57M$
A18: Cumulative Planned Value (PV) | B18: =+B17 -> 4.36M$ | C18: =+B18+C17 -> 38.69M$ | D18: 96.98M$ | E18: 187.18M$ | F18: 318.56M$ | G18: =+F18+G17 -> 439.37M$ | H18: 528.47M$ | I18: 588.56M$ | J18: 603.13M$
A20: Monthly Actual Cost (AC) | B20: 6.36M$ | C20: 48.56M$ | D20: 76.56M$ | E20: 106.56M$ | F20: 165.56M$ | G20: 118.56M$
A21: Cumulative Actual Cost (AC) | B21: =+B20 -> 6.36M$ | C21: =+B21+C20 -> 54.92M$ | D21: 131.49M$ | E21: 238.05M$ | F21: 403.61M$ | G21: 522.17M$
A23: Monthly Earned Value (EV) | B23: =+B17*L5 -> 4.36M$ | C23: =+C17*L6 -> 30.89M$ | D23: =D17*L7 -> 49.55M$ | E23: =+E17*L8 -> 54.12M$ | F23: =F17*L9 -> 105.10M$ | G23: =+G17*L10 -> 90.61M$
A24: Cumulative Earned Value (EV) | B24: =+B23 -> 4.36M$ | C24: =+C23+B24 -> 35.26M$ | D24: =+D23+C24 -> 84.81M$ | E24: =+E23+D24 -> 138.93M$ | F24: =+F23+E24 -> 244.03M$ | G24: =+G23+F24 -> 334.63M$
A25: Find Till November 30, 2020
A26: Project EV as of November 30 | B26: =+G24 -> 334.63M$
A27: Project PV as of November 30 | B27: =+G18 -> 439.37M$
A28: Project AC as of November 30 | B28: =+G21 -> 522.17M$
A30: To Find
A31: Cost Variance CV = EV-AC | B31: =B26-B28 -> -187.54M$ | D31: Over Budget
A32: SV = EV-PV | B32: =B26-B27 -> -104.73M$ | D32: Behind Schedule
A33: CPI = EV/AC | B33: =B26/B28 -> 0.64 | D33: Over Budget
A34: SPI = EV/PV | B34: =B26/B27 -> 0.76 | D34: Behind Schedule
A35: Estimate at Completion Cost ($) EAC Original Plan (Total Cost) / CPI = | B35: =+K16/B33 -> 941.15M$ | D35: Cost Require to Complete Work
A36: Estimate Time To Complete (ETC) =Original Plan / SPI Duration of Month | B36: =9/B34 -> 12 | D36: 2 Month More Require to complete Work

Sheet EVM Chart
A4: Month | B4: 2020-06-01 | C4: 2020-07-01 | D4: 2020-08-01 | E4: 2020-09-01 | F4: 2020-10-01 | G4: 2020-11-01 | H4: 2020-12-01 | I4: 2021-01-01 | J4: 2021-02-01
A5: Panned Value (PV) | B5: =+'Earned Value Date'!B17 -> 4.36M$ | C5: =+'Earned Value Date'!C17 -> 34.33M$ | D5: =+'Earned Value Date'!D17 -> 58.30M$ | E5: =+'Earned Value Date'!E17 -> 90.20M$ | F5: =+'Earned Value Date'!F17 -> 131.38M$ | G5: =+'Earned Value Date'!G17 -> 120.81M$ | H5: =+'Earned Value Date'!H17 -> 89.10M$ | I5: =+'Earned Value Date'!I17 -> 60.09M$ | J5: =+'Earned Value Date'!J17 -> 14.57M$
A6: Actual Cost (AC) | B6: =+'Earned Value Date'!B20 -> 6.36M$ | C6: =+'Earned Value Date'!C20 -> 48.56M$ | D6: =+'Earned Value Date'!D20 -> 76.56M$ | E6: =+'Earned Value Date'!E20 -> 106.56M$ | F6: =+'Earned Value Date'!F20 -> 165.56M$ | G6: =+'Earned Value Date'!G20 -> 118.56M$ | H6: =+'Earned Value Date'!H20 -> 0 | I6: =+'Earned Value Date'!I20 -> 0 | J6: =+'Earned Value Date'!J20 -> 0
A7: Earned Value (EV) | B7: =+'Earned Value Date'!B23 -> 4.36M$ | C7: =+'Earned Value Date'!C23 -> 30.89M$ | D7: =+'Earned Value Date'!D23 -> 49.55M$ | E7: =+'Earned Value Date'!E23 -> 54.12M$ | F7: =+'Earned Value Date'!F23 -> 105.10M$ | G7: =+'Earned Value Date'!G23 -> 90.61M$ | H7: =+'Earned Value Date'!H23 -> 0 | I7: =+'Earned Value Date'!I23 -> 0 | J7: =+'Earned Value Date'!J23 -> 0
A8: Planned Value Cost % | B8: =B5/SUM($B$5:$J$5) -> 0.72% | C8: =C5/SUM($B$5:$J$5) -> 5.69% | D8: =D5/SUM($B$5:$J$5) -> 9.67% | E8: 14.96% | F8: 21.78% | G8: 20.03% | H8: 14.77% | I8: 9.96% | J8: 2.42%
A9: Cum Planned Value Cost % | B9: =+B8 -> 0.72% | C9: =+C8+B9 -> 6.41% | D9: =+D8+C9 -> 16.08% | E9: =+E8+D9 -> 31.04% | F9: 52.82% | G9: 72.85% | H9: 87.62% | I9: 97.58% | J9: 100.00%
A10: Actual Cost % | B10: =B6/SUM($B$5:$J$5) -> 1.05% | C10: =C6/SUM($B$5:$J$5) -> 8.05% | D10: =D6/SUM($B$5:$J$5) -> 12.69% | E10: 17.67% | F10: 27.45% | G10: 19.66%
A11: Cum Actual Cost % | B11: =+B10 -> 1.05% | C11: =+C10+B11 -> 9.11% | D11: =+D10+C11 -> 21.80% | E11: =+E10+D11 -> 39.47% | F11: =+F10+E11 -> 66.92% | G11: =+G10+F11 -> 86.58%
A12: Earned Value % | B12: =B7/SUM($B$5:$J$5) -> 0.72% | C12: =C7/SUM($B$5:$J$5) -> 5.12% | D12: =D7/SUM($B$5:$J$5) -> 8.22% | E12: 8.97% | F12: 17.43% | G12: 15.02%
A13: Cum Earned Value % | B13: =+B12 -> 0.72% | C13: =+C12+B13 -> 5.85% | D13: =+D12+C13 -> 14.06% | E13: =+E12+D13 -> 23.03% | F13: 40.46% | G13: =+G12+F13 -> 55.48%
